[Event "Early-Titled-Tuesday-Blitz-August-29-2023"]
[Site "Chess.com"]
[Date "2023.08.29"]
[Round "1"]
[White "mapleaff"]
[Black "Frolyanov_D"]
[Result "1-0"]
[WhiteElo "2288"]
[BlackElo "2598"]
[TimeControl "180+1"]
[EndTime "8:05:16 PDT"]
[Termination "mapleaff won by resignation"]

1. e4 {[%clk 0:02:58.9]} 1... e5 {[%clk 0:02:59.5]} 2. Nf3 {[%clk 0:02:58.7]}
2... Nf6 {[%clk 0:02:59.6]} 3. Nc3 {[%clk 0:02:57.9]} 3... Nc6 {[%clk
0:02:59.2]} 4. Bb5 {[%clk 0:02:57.8]} 4... Nd4 {[%clk 0:02:58.9]} 5. Bc4 {[%clk
0:02:56.5]} 5... Bc5 {[%clk 0:02:57.5]} 6. h3 {[%clk 0:02:50.2]} 6... d6 {[%clk
0:02:55]} 7. d3 {[%clk 0:02:48.5]} 7... O-O {[%clk 0:02:49.2]} 8. Bg5 {[%clk
0:02:43.6]} 8... c6 {[%clk 0:02:48.1]} 9. O-O {[%clk 0:02:33]} 9... h6 {[%clk
0:02:46.7]} 10. Bh4 {[%clk 0:02:31.1]} 10... b5 {[%clk 0:02:43.2]} 11. Bb3
{[%clk 0:02:27.8]} 11... g5 {[%clk 0:02:34.7]} 12. Bg3 {[%clk 0:02:24.5]} 12...
Nxb3 {[%clk 0:02:33.9]} 13. axb3 {[%clk 0:02:20.7]} 13... Nh5 {[%clk 0:02:27.2]}
14. d4 {[%clk 0:01:50.4]} 14... Nxg3 {[%clk 0:02:18.6]} 15. fxg3 {[%clk
0:01:49.2]} 15... exd4 {[%clk 0:02:17.8]} 16. Nxd4 {[%clk 0:01:48.8]} 16... Qe7
{[%clk 0:02:04.7]} 17. Kh2 {[%clk 0:01:35]} 17... b4 {[%clk 0:01:54.4]} 18. Nxc6
{[%clk 0:01:24.4]} 18... Qb7 {[%clk 0:01:16.2]} 19. Nd5 {[%clk 0:01:17.9]} 19...
f5 {[%clk 0:01:15.9]} 20. Nce7+ {[%clk 0:01:12.9]} 20... Kh7 {[%clk 0:01:12.9]}
21. Qh5 {[%clk 0:01:07.4]} 21... Rg8 {[%clk 0:00:46.9]} 22. Nf6+ {[%clk
0:00:59.8]} 1-0

[Event "Early-Titled-Tuesday-Blitz-August-29-2023"]
[Site "Chess.com"]
[Date "2023.08.29"]
[Round "1"]
[White "Rikikits"]
[Black "schack_vit"]
[Result "1-0"]
[WhiteElo "2871"]
[BlackElo "2461"]
[TimeControl "180+1"]
[EndTime "8:05:24 PDT"]
[Termination "Rikikits won by resignation"]

1. b3 {[%clk 0:03:00.9]} 1... d5 {[%clk 0:02:57]} 2. Bb2 {[%clk 0:03:01.8]} 2...
Nf6 {[%clk 0:02:57.2]} 3. e3 {[%clk 0:03:01.8]} 3... c5 {[%clk 0:02:57.1]} 4. f4
{[%clk 0:03:01]} 4... Nc6 {[%clk 0:02:57.5]} 5. Nf3 {[%clk 0:03:01.1]} 5... Bg4
{[%clk 0:02:56.5]} 6. Bb5 {[%clk 0:03:00.9]} 6... Qb6 {[%clk 0:02:51.9]} 7. Nc3
{[%clk 0:02:58.9]} 7... e6 {[%clk 0:02:32.8]} 8. h3 {[%clk 0:02:58.4]} 8... Bxf3
{[%clk 0:02:28.8]} 9. Qxf3 {[%clk 0:02:59.3]} 9... a6 {[%clk 0:02:27.4]} 10.
Bxc6+ {[%clk 0:02:58.9]} 10... Qxc6 {[%clk 0:02:28.3]} 11. O-O-O {[%clk
0:02:58.4]} 11... Be7 {[%clk 0:02:25.4]} 12. g4 {[%clk 0:02:57.8]} 12... h6
{[%clk 0:02:21.3]} 13. Kb1 {[%clk 0:02:57.2]} 13... O-O-O {[%clk 0:02:17.4]} 14.
Ne2 {[%clk 0:02:54.4]} 14... Rh7 {[%clk 0:02:05.5]} 15. Ng3 {[%clk 0:02:46.6]}
15... Ne4 {[%clk 0:01:49.2]} 16. d3 {[%clk 0:02:44.2]} 16... Nxg3 {[%clk
0:01:39.7]} 17. Qxg3 {[%clk 0:02:45.1]} 17... g5 {[%clk 0:01:30.7]} 18. f5
{[%clk 0:02:44.1]} 18... Bd6 {[%clk 0:01:30.3]} 19. Qf3 {[%clk 0:02:43.6]} 19...
e5 {[%clk 0:01:20.4]} 20. c4 {[%clk 0:02:39]} 20... d4 {[%clk 0:01:17.4]} 21.
Qxc6+ {[%clk 0:02:38.3]} 21... bxc6 {[%clk 0:01:18.3]} 22. e4 {[%clk 0:02:36.5]}
22... h5 {[%clk 0:01:08.7]} 23. h4 {[%clk 0:02:34.5]} 23... Rg8 {[%clk
0:00:56.3]} 24. Bc1 {[%clk 0:02:29.8]} 24... gxh4 {[%clk 0:00:30.7]} 25. g5
{[%clk 0:02:30.7]} 25... Be7 {[%clk 0:00:30.9]} 26. f6 {[%clk 0:02:28.1]} 26...
Bd6 {[%clk 0:00:29.1]} 27. Rxh4 {[%clk 0:02:28.3]} 27... Kd7 {[%clk 0:00:26.7]}
28. Rdh1 {[%clk 0:02:28.9]} 28... Rgh8 {[%clk 0:00:26.4]} 29. Kb2 {[%clk
0:02:27.8]} 29... Ke6 {[%clk 0:00:25.8]} 30. Ka3 {[%clk 0:02:28.2]} 30... Bc7
{[%clk 0:00:22.5]} 31. Ka4 {[%clk 0:02:28.4]} 31... Bb6 {[%clk 0:00:22.7]} 32.
Bd2 {[%clk 0:02:28.5]} 32... Bc7 {[%clk 0:00:20.6]} 33. Ba5 {[%clk 0:02:28.4]}
33... Bxa5 {[%clk 0:00:17.5]} 34. Kxa5 {[%clk 0:02:29.3]} 34... Kd6 {[%clk
0:00:16]} 35. a3 {[%clk 0:02:22.7]} 35... Kc7 {[%clk 0:00:15.6]} 36. b4 {[%clk
0:02:22.9]} 36... cxb4 {[%clk 0:00:15.8]} 37. axb4 {[%clk 0:02:23.8]} 37... Kb7
{[%clk 0:00:16.1]} 38. Rf1 {[%clk 0:02:17]} 38... Rg8 {[%clk 0:00:16]} 39. Rf5
{[%clk 0:02:17.3]} 39... Re8 {[%clk 0:00:15]} 40. b5 {[%clk 0:02:14.9]} 40...
axb5 {[%clk 0:00:14.8]} 41. cxb5 {[%clk 0:02:15.8]} 41... cxb5 {[%clk
0:00:15.7]} 42. Kxb5 {[%clk 0:02:16.4]} 42... Kc7 {[%clk 0:00:16]} 43. Kc5
{[%clk 0:02:16.2]} 43... Kd7 {[%clk 0:00:15.3]} 44. Kd5 {[%clk 0:02:16.9]} 44...
Rhh8 {[%clk 0:00:15]} 45. Rxe5 {[%clk 0:02:15.8]} 45... Ra8 {[%clk 0:00:13.5]}
46. Re7+ {[%clk 0:02:15.7]} 46... Kd8 {[%clk 0:00:13.3]} 47. e5 {[%clk
0:02:12.7]} 1-0

[Event "Early-Titled-Tuesday-Blitz-August-29-2023"]
[Site "Chess.com"]
[Date "2023.08.29"]
[Round "1"]
[White "zurzan"]
[Black "jaskol95"]
[Result "0-1"]
[WhiteElo "2083"]
[BlackElo "2555"]
[TimeControl "180+1"]
[EndTime "8:05:24 PDT"]
[Termination "jaskol95 won by checkmate"]

1. c4 {[%clk 0:03:00.9]} 1... c6 {[%clk 0:02:59.7]} 2. Nc3 {[%clk 0:02:57.4]}
2... d5 {[%clk 0:02:55.4]} 3. cxd5 {[%clk 0:02:57.1]} 3... cxd5 {[%clk
0:02:55.8]} 4. d4 {[%clk 0:02:57.8]} 4... Nf6 {[%clk 0:02:55.9]} 5. Nf3 {[%clk
0:02:56.7]} 5... Nc6 {[%clk 0:02:56.4]} 6. g3 {[%clk 0:02:56.5]} 6... e6 {[%clk
0:02:53.4]} 7. Bg2 {[%clk 0:02:57.4]} 7... a6 {[%clk 0:02:52.8]} 8. O-O {[%clk
0:02:57.1]} 8... Be7 {[%clk 0:02:52.5]} 9. a4 {[%clk 0:02:57.1]} 9... O-O {[%clk
0:02:48.1]} 10. Re1 {[%clk 0:02:56.7]} 10... Bb4 {[%clk 0:02:44.5]} 11. Bd2
{[%clk 0:02:54.7]} 11... Re8 {[%clk 0:02:43.5]} 12. Na2 {[%clk 0:02:48.5]} 12...
Bxd2 {[%clk 0:02:42.9]} 13. Qxd2 {[%clk 0:02:49.4]} 13... Ne4 {[%clk 0:02:43.1]}
14. Qd3 {[%clk 0:02:43]} 14... e5 {[%clk 0:02:29.6]} 15. dxe5 {[%clk 0:02:42.2]}
15... Qb6 {[%clk 0:02:29.6]} 16. e3 {[%clk 0:02:12.6]} 16... Qxb2 {[%clk
0:02:28.6]} 17. Rf1 {[%clk 0:01:55.8]} 17... Nxe5 {[%clk 0:02:06.6]} 18. Qxd5
{[%clk 0:01:54.6]} 18... Nxf3+ {[%clk 0:01:58.9]} 19. Bxf3 {[%clk 0:01:54.6]}
19... Nd2 {[%clk 0:01:58.1]} 20. Rfd1 {[%clk 0:01:37.2]} 20... Nxf3+ {[%clk
0:01:57.8]} 21. Qxf3 {[%clk 0:01:37.5]} 21... Be6 {[%clk 0:01:55]} 22. Rdb1
{[%clk 0:01:35.5]} 22... Qe5 {[%clk 0:01:37.3]} 23. Nb4 {[%clk 0:01:34.5]} 23...
Rac8 {[%clk 0:01:27.8]} 24. Nd3 {[%clk 0:01:34.2]} 24... Qd6 {[%clk 0:01:19.9]}
25. Nf4 {[%clk 0:01:33.9]} 25... Bf5 {[%clk 0:01:18.1]} 26. Qd1 {[%clk
0:01:29.5]} 26... Qb8 {[%clk 0:00:52.3]} 27. Rc1 {[%clk 0:01:28.1]} 27... Rcd8
{[%clk 0:00:52.4]} 28. Qe1 {[%clk 0:01:27.4]} 28... Be4 {[%clk 0:00:51.7]} 29.
Rd1 {[%clk 0:01:15.4]} 29... Bc6 {[%clk 0:00:50.5]} 30. Rxd8 {[%clk 0:01:14]}
30... Qxd8 {[%clk 0:00:47.8]} 31. Rd1 {[%clk 0:01:14.9]} 31... Qe7 {[%clk
0:00:47.6]} 32. a5 {[%clk 0:01:13.8]} 32... Qe4 {[%clk 0:00:46.6]} 33. Qf1
{[%clk 0:01:12.3]} 33... Qh1# {[%clk 0:00:46.7]} 0-1

[Event "Early-Titled-Tuesday-Blitz-August-29-2023"]
[Site "Chess.com"]
[Date "2023.08.29"]
[Round "1"]
[White "BilodeauA"]
[Black "Caterpiller35"]
[Result "1-0"]
[WhiteElo "2933"]
[BlackElo "2492"]
[TimeControl "180+1"]
[EndTime "8:05:26 PDT"]
[Termination "BilodeauA won by resignation"]

1. e4 {[%clk 0:02:57.5]} 1... c5 {[%clk 0:02:59.5]} 2. Nf3 {[%clk 0:02:57.3]}
2... Nc6 {[%clk 0:02:54.3]} 3. d4 {[%clk 0:02:56.5]} 3... cxd4 {[%clk
0:02:55.2]} 4. Nxd4 {[%clk 0:02:57.2]} 4... e5 {[%clk 0:02:55.8]} 5. Nb5 {[%clk
0:02:55.9]} 5... d6 {[%clk 0:02:55.4]} 6. c4 {[%clk 0:02:52.5]} 6... Be7 {[%clk
0:02:55.1]} 7. N1c3 {[%clk 0:02:49.9]} 7... a6 {[%clk 0:02:55.1]} 8. Na3 {[%clk
0:02:50.2]} 8... Be6 {[%clk 0:02:56]} 9. Nc2 {[%clk 0:02:45.1]} 9... Bg5 {[%clk
0:02:55.8]} 10. Be2 {[%clk 0:02:43.8]} 10... Bxc1 {[%clk 0:02:54]} 11. Rxc1
{[%clk 0:02:44.7]} 11... Nf6 {[%clk 0:02:52.3]} 12. O-O {[%clk 0:02:43.9]} 12...
O-O {[%clk 0:02:52.5]} 13. Qd2 {[%clk 0:02:37.8]} 13... Rc8 {[%clk 0:02:50.6]}
14. Rfd1 {[%clk 0:02:37.8]} 14... Qb6 {[%clk 0:02:50.1]} 15. b3 {[%clk
0:02:34.1]} 15... Rfd8 {[%clk 0:02:48.4]} 16. h3 {[%clk 0:02:29.6]} 16... Qa7
{[%clk 0:02:42.7]} 17. Bf1 {[%clk 0:02:29.3]} 17... h6 {[%clk 0:02:29.8]} 18.
Qe1 {[%clk 0:02:07.1]} 18... Kf8 {[%clk 0:02:25.3]} 19. Rd3 {[%clk 0:02:05.7]}
19... b5 {[%clk 0:02:06.6]} 20. cxb5 {[%clk 0:01:49.3]} 20... axb5 {[%clk
0:02:07.5]} 21. Nxb5 {[%clk 0:01:49.6]} 21... Qxa2 {[%clk 0:02:06.8]} 22. Nxd6
{[%clk 0:01:40.1]} 22... Rb8 {[%clk 0:02:05.3]} 23. b4 {[%clk 0:01:36.4]} 23...
Bb3 {[%clk 0:01:42.9]} 24. Qc3 {[%clk 0:01:27.3]} 24... Bxc2 {[%clk 0:00:36.4]}
25. Rxc2 {[%clk 0:01:25.6]} 25... Qxc2 {[%clk 0:00:36.7]} 26. Qxc2 {[%clk
0:01:21.5]} 26... Nxb4 {[%clk 0:00:37.6]} 27. Qc7 {[%clk 0:01:14.2]} 1-0

[Event "Early-Titled-Tuesday-Blitz-August-29-2023"]
[Site "Chess.com"]
[Date "2023.08.29"]
[Round "1"]
[White "PattyCastillo"]
[Black "Chessbard1972"]
[Result "0-1"]
[WhiteElo "1933"]
[BlackElo "2538"]
[TimeControl "180+1"]
[EndTime "8:05:26 PDT"]
[Termination "Chessbard1972 won by resignation"]

1. d4 {[%clk 0:03:00]} 1... Nf6 {[%clk 0:02:59.2]} 2. Nf3 {[%clk 0:02:58.5]}
2... g6 {[%clk 0:02:59.7]} 3. Nc3 {[%clk 0:02:53.9]} 3... d5 {[%clk 0:02:58.2]}
4. Bf4 {[%clk 0:02:54]} 4... Bg7 {[%clk 0:02:57.4]} 5. e3 {[%clk 0:02:50.5]}
5... Bf5 {[%clk 0:02:56.4]} 6. Bd3 {[%clk 0:02:46.7]} 6... Bxd3 {[%clk
0:02:56.3]} 7. Qxd3 {[%clk 0:02:46.2]} 7... c6 {[%clk 0:02:55.7]} 8. h3 {[%clk
0:02:43.5]} 8... Nbd7 {[%clk 0:02:55.4]} 9. O-O {[%clk 0:02:42.2]} 9... O-O
{[%clk 0:02:54.8]} 10. Ne5 {[%clk 0:02:42.3]} 10... Nxe5 {[%clk 0:02:53.9]} 11.
Bxe5 {[%clk 0:02:41.8]} 11... Nd7 {[%clk 0:02:52.4]} 12. Bxg7 {[%clk 0:02:42]}
12... Kxg7 {[%clk 0:02:52.8]} 13. e4 {[%clk 0:02:38.8]} 13... e6 {[%clk
0:02:51.3]} 14. Rfe1 {[%clk 0:02:28.9]} 14... Re8 {[%clk 0:02:49.2]} 15. exd5
{[%clk 0:02:26.8]} 15... cxd5 {[%clk 0:02:47.6]} 16. Rac1 {[%clk 0:02:14.5]}
16... Rc8 {[%clk 0:02:46.2]} 17. Nb5 {[%clk 0:01:41.6]} 17... Qb6 {[%clk
0:02:44.9]} 18. c3 {[%clk 0:01:26.7]} 18... a6 {[%clk 0:02:44]} 19. Na3 {[%clk
0:01:26.2]} 19... Nf6 {[%clk 0:02:42.4]} 20. Nc2 {[%clk 0:01:16.9]} 20... Qxb2
{[%clk 0:02:40]} 21. Rb1 {[%clk 0:01:13.3]} 21... Qxc3 {[%clk 0:02:39.7]} 22.
Qxc3 {[%clk 0:01:13.9]} 22... Rxc3 {[%clk 0:02:39.2]} 23. Ne3 {[%clk 0:01:12.7]}
23... b5 {[%clk 0:02:37.7]} 24. Rb4 {[%clk 0:01:08.4]} 24... Rec8 {[%clk
0:02:36.7]} 25. a4 {[%clk 0:01:06.5]} 25... Rc1 {[%clk 0:02:25]} 26. Rxc1 {[%clk
0:01:04.9]} 26... Rxc1+ {[%clk 0:02:25]} 27. Kh2 {[%clk 0:01:05.7]} 27... bxa4
{[%clk 0:02:25]} 28. Rxa4 {[%clk 0:01:06.1]} 28... Rc6 {[%clk 0:02:25.5]} 29. f3
{[%clk 0:00:57.1]} 29... h5 {[%clk 0:02:22.3]} 30. Kg3 {[%clk 0:00:56.6]} 30...
g5 {[%clk 0:02:20.3]} 31. Kf2 {[%clk 0:00:56.7]} 31... Ne8 {[%clk 0:02:16.8]}
32. Ke2 {[%clk 0:00:56.8]} 32... Nc7 {[%clk 0:02:14.3]} 33. Kd2 {[%clk
0:00:54.7]} 33... Nb5 {[%clk 0:02:12.8]} 34. Kd3 {[%clk 0:00:53.9]} 34... f6
{[%clk 0:02:09.6]} 35. Nc2 {[%clk 0:00:46.1]} 35... Rc3+ {[%clk 0:02:07.8]} 36.
Kd2 {[%clk 0:00:45.7]} 36... Rc6 {[%clk 0:02:06.8]} 37. Nb4 {[%clk 0:00:44.2]}
37... Rc4 {[%clk 0:02:06.9]} 0-1

[Event "Early-Titled-Tuesday-Blitz-August-29-2023"]
[Site "Chess.com"]
[Date "2023.08.29"]
[Round "1"]
[White "DanilNajdin"]
[Black "nihalsarin"]
[Result "0-1"]
[WhiteElo "2532"]
[BlackElo "3139"]
[TimeControl "180+1"]
[EndTime "8:05:28 PDT"]
[Termination "nihalsarin won by resignation"]

1. d4 {[%clk 0:03:00.9]} 1... c6 {[%clk 0:03:00.9]} 2. e4 {[%clk 0:02:58.9]}
2... d5 {[%clk 0:03:01.8]} 3. exd5 {[%clk 0:02:59.7]} 3... cxd5 {[%clk
0:02:59.9]} 4. Bd3 {[%clk 0:03:00.3]} 4... Nc6 {[%clk 0:02:59.4]} 5. c3 {[%clk
0:03:00.7]} 5... Nf6 {[%clk 0:02:58.8]} 6. Bf4 {[%clk 0:03:00.9]} 6... Bg4
{[%clk 0:02:58.7]} 7. Qb3 {[%clk 0:03:01.5]} 7... Qc8 {[%clk 0:02:58.2]} 8. Nd2
{[%clk 0:03:01.8]} 8... e6 {[%clk 0:02:58.6]} 9. Ngf3 {[%clk 0:03:02.4]} 9...
Be7 {[%clk 0:02:59.1]} 10. O-O {[%clk 0:02:59.9]} 10... O-O {[%clk 0:02:59.1]}
11. Rae1 {[%clk 0:02:52.3]} 11... Bh5 {[%clk 0:02:59.2]} 12. Ne5 {[%clk
0:02:49.7]} 12... Bg6 {[%clk 0:02:59.7]} 13. Nxg6 {[%clk 0:02:48.7]} 13... hxg6
{[%clk 0:03:00.6]} 14. Nf3 {[%clk 0:02:47.8]} 14... Qd7 {[%clk 0:02:51.4]} 15.
Qc2 {[%clk 0:02:44.2]} 15... Bd6 {[%clk 0:02:51.1]} 16. Ne5 {[%clk 0:02:33.7]}
16... Qc7 {[%clk 0:02:50.4]} 17. Qe2 {[%clk 0:02:24.2]} 17... Rab8 {[%clk
0:02:47.9]} 18. Bg3 {[%clk 0:02:17.5]} 18... Ne7 {[%clk 0:02:31]} 19. Bh4 {[%clk
0:01:53.9]} 19... Nf5 {[%clk 0:02:21.9]} 20. Bxf6 {[%clk 0:01:30]} 20... gxf6
{[%clk 0:02:20.1]} 21. Bxf5 {[%clk 0:01:20.2]} 21... gxf5 {[%clk 0:02:00]} 22.
Qh5 {[%clk 0:00:46.2]} 22... Kg7 {[%clk 0:01:35.1]} 23. Re3 {[%clk 0:00:45.9]}
23... Rg8 {[%clk 0:01:35.9]} 24. Rg3+ {[%clk 0:00:31.8]} 24... Kf8 {[%clk
0:01:34.8]} 25. Rxg8+ {[%clk 0:00:28.1]} 25... Kxg8 {[%clk 0:01:35.7]} 26. Nf3
{[%clk 0:00:25.6]} 26... Kg7 {[%clk 0:01:36.1]} 0-1

[Event "Early-Titled-Tuesday-Blitz-August-29-2023"]
[Site "Chess.com"]
[Date "2023.08.29"]
[Round "1"]
[White "maurovargas01"]
[Black "averageFM"]
[Result "0-1"]
[WhiteElo "1911"]
[BlackElo "2539"]
[TimeControl "180+1"]
[EndTime "8:05:28 PDT"]
[Termination "averageFM won by checkmate"]

1. e4 {[%clk 0:02:43]} 1... c5 {[%clk 0:02:58.5]} 2. Nc3 {[%clk 0:02:41.6]} 2...
e6 {[%clk 0:02:55.3]} 3. f4 {[%clk 0:02:42.4]} 3... d5 {[%clk 0:02:53.4]} 4. Nf3
{[%clk 0:02:43.3]} 4... dxe4 {[%clk 0:02:45.5]} 5. Nxe4 {[%clk 0:02:44.2]} 5...
Nf6 {[%clk 0:02:45.8]} 6. Nc3 {[%clk 0:02:26.9]} 6... Nc6 {[%clk 0:02:45.5]} 7.
Bb5 {[%clk 0:02:24.3]} 7... Bd7 {[%clk 0:02:45.3]} 8. d3 {[%clk 0:02:22.6]} 8...
a6 {[%clk 0:02:43.5]} 9. Bxc6 {[%clk 0:02:22.4]} 9... Bxc6 {[%clk 0:02:43]} 10.
O-O {[%clk 0:02:23.3]} 10... Bd6 {[%clk 0:02:40.8]} 11. f5 {[%clk 0:02:22.1]}
11... O-O {[%clk 0:02:34.6]} 12. fxe6 {[%clk 0:02:21.3]} 12... fxe6 {[%clk
0:02:35.5]} 13. Ng5 {[%clk 0:02:17.2]} 13... Qd7 {[%clk 0:02:25.5]} 14. Qe1
{[%clk 0:02:15.8]} 14... Ng4 {[%clk 0:02:14.6]} 15. h3 {[%clk 0:01:18.4]} 15...
Rxf1+ {[%clk 0:02:03.7]} 16. Qxf1 {[%clk 0:01:11.1]} 16... Rf8 {[%clk
0:01:57.9]} 17. Qe1 {[%clk 0:01:05.7]} 17... Bh2+ {[%clk 0:01:42.3]} 18. Kh1
{[%clk 0:01:01.6]} 18... Bg3 {[%clk 0:01:35.3]} 19. Qe2 {[%clk 0:00:22.5]} 19...
Rf2 {[%clk 0:01:31]} 20. Qd1 {[%clk 0:00:12.5]} 20... Bxg2+ {[%clk 0:01:21.5]}
21. Kg1 {[%clk 0:00:10.9]} 21... Bh2# {[%clk 0:01:20.5]} 0-1

[Event "Early-Titled-Tuesday-Blitz-August-29-2023"]
[Site "Chess.com"]
[Date "2023.08.29"]
[Round "1"]
[White "HajiyevKanan"]
[Black "Fandorine"]
[Result "0-1"]
[WhiteElo "2502"]
[BlackElo "2950"]
[TimeControl "180+1"]
[EndTime "8:05:31 PDT"]
[Termination "Fandorine won by resignation"]

1. d4 {[%clk 0:02:58.2]} 1... Nf6 {[%clk 0:02:59.7]} 2. Nf3 {[%clk 0:02:57.2]}
2... g6 {[%clk 0:02:59.9]} 3. g3 {[%clk 0:02:56.8]} 3... Bg7 {[%clk 0:03:00.3]}
4. Bg2 {[%clk 0:02:57.4]} 4... O-O {[%clk 0:03:01]} 5. O-O {[%clk 0:02:58.1]}
5... d6 {[%clk 0:03:01.8]} 6. b3 {[%clk 0:02:58.1]} 6... e5 {[%clk 0:03:02]} 7.
Bb2 {[%clk 0:02:53.7]} 7... e4 {[%clk 0:03:01.7]} 8. Ne1 {[%clk 0:02:53.8]} 8...
d5 {[%clk 0:02:50.9]} 9. f3 {[%clk 0:02:52.8]} 9... Re8 {[%clk 0:02:50.8]} 10.
c4 {[%clk 0:02:43.3]} 10... c6 {[%clk 0:02:49]} 11. Nc3 {[%clk 0:02:42.7]} 11...
e3 {[%clk 0:02:43.1]} 12. cxd5 {[%clk 0:02:11.6]} 12... cxd5 {[%clk 0:02:40.7]}
13. Nd3 {[%clk 0:02:11.2]} 13... Nc6 {[%clk 0:02:39.9]} 14. Ne5 {[%clk
0:02:10.7]} 14... Nxe5 {[%clk 0:02:31.1]} 15. dxe5 {[%clk 0:02:10]} 15... Rxe5
{[%clk 0:02:30.1]} 16. Rc1 {[%clk 0:01:56.4]} 16... d4 {[%clk 0:02:26.1]} 17. f4
{[%clk 0:01:43.2]} 17... Rh5 {[%clk 0:02:25.2]} 18. a4 {[%clk 0:01:28.7]} 18...
Bh3 {[%clk 0:02:12.6]} 19. Nb5 {[%clk 0:01:18.8]} 19... Bxg2 {[%clk 0:02:06.2]}
20. Kxg2 {[%clk 0:01:19.2]} 20... Ng4 {[%clk 0:01:40.3]} 21. h3 {[%clk
0:01:12.9]} 21... Nf2 {[%clk 0:01:33.4]} 22. Rxf2 {[%clk 0:00:43.6]} 22... exf2
{[%clk 0:01:32.7]} 23. Bxd4 {[%clk 0:00:27]} 23... Rxb5 {[%clk 0:01:26.4]} 24.
Bxg7 {[%clk 0:00:18.3]} 24... Rd5 {[%clk 0:01:26]} 25. Bf6 {[%clk 0:00:10.9]}
25... Rxd1 {[%clk 0:01:23.1]} 0-1

[Event "Early-Titled-Tuesday-Blitz-August-29-2023"]
[Site "Chess.com"]
[Date "2023.08.29"]
[Round "1"]
[White "WhiteKnight2612"]
[Black "Kotofeyca"]
[Result "1-0"]
[WhiteElo "2816"]
[BlackElo "2437"]
[TimeControl "180+1"]
[EndTime "8:05:41 PDT"]
[Termination "WhiteKnight2612 won on time"]

1. d4 {[%clk 0:02:58.1]} 1... d5 {[%clk 0:02:57.2]} 2. c4 {[%clk 0:02:58]} 2...
c6 {[%clk 0:02:58.1]} 3. Nc3 {[%clk 0:02:57.6]} 3... Nf6 {[%clk 0:02:57.9]} 4.
Nf3 {[%clk 0:02:55.5]} 4... dxc4 {[%clk 0:02:56.7]} 5. a4 {[%clk 0:02:54.5]}
5... Bg4 {[%clk 0:02:56.5]} 6. Ne5 {[%clk 0:02:49.6]} 6... Bh5 {[%clk
0:02:56.1]} 7. Nxc4 {[%clk 0:02:48.4]} 7... e6 {[%clk 0:02:54.9]} 8. Bg5 {[%clk
0:02:46.9]} 8... c5 {[%clk 0:02:48.4]} 9. d5 {[%clk 0:02:41.9]} 9... exd5 {[%clk
0:02:38.7]} 10. Bxf6 {[%clk 0:02:40.1]} 10... Qxf6 {[%clk 0:02:24.3]} 11. Qxd5
{[%clk 0:02:39.2]} 11... Bg6 {[%clk 0:01:51.5]} 12. Nb5 {[%clk 0:02:18.7]} 12...
Na6 {[%clk 0:00:40.7]} 13. Qxb7 {[%clk 0:02:15.6]} 13... Rd8 {[%clk 0:00:25.8]}
14. Qxa6 {[%clk 0:02:14.9]} 14... Qxa6 {[%clk 0:00:19.1]} 15. Nc7+ {[%clk
0:02:14.2]} 15... Kd7 {[%clk 0:00:20]} 16. Nxa6 {[%clk 0:02:15.1]} 16... Kc6
{[%clk 0:00:17.5]} 17. e3 {[%clk 0:02:10.1]} 17... Kb7 {[%clk 0:00:17.4]} 18.
Ne5 {[%clk 0:01:10.5]} 1-0

[Event "Early-Titled-Tuesday-Blitz-August-29-2023"]
[Site "Chess.com"]
[Date "2023.08.29"]
[Round "1"]
[White "Msb2"]
[Black "Gameking51"]
[Result "1-0"]
[WhiteElo "3024"]
[BlackElo "2516"]
[TimeControl "180+1"]
[EndTime "8:05:42 PDT"]
[Termination "Msb2 won by resignation"]

1. d4 {[%clk 0:03:00.9]} 1... Nf6 {[%clk 0:02:57.9]} 2. c4 {[%clk 0:03:01.1]}
2... e6 {[%clk 0:02:57.2]} 3. Nc3 {[%clk 0:03:01.7]} 3... d5 {[%clk 0:02:56.4]}
4. cxd5 {[%clk 0:03:02.6]} 4... exd5 {[%clk 0:02:56.2]} 5. Bg5 {[%clk 0:03:03]}
5... c6 {[%clk 0:02:39.8]} 6. e3 {[%clk 0:03:02.1]} 6... Be7 {[%clk 0:02:37.2]}
7. Bd3 {[%clk 0:03:01.7]} 7... Nbd7 {[%clk 0:02:34.8]} 8. h3 {[%clk 0:03:02.1]}
8... O-O {[%clk 0:02:31]} 9. Nf3 {[%clk 0:03:02.4]} 9... Re8 {[%clk 0:02:27.8]}
10. Qc2 {[%clk 0:03:02.3]} 10... h6 {[%clk 0:02:23.8]} 11. Bf4 {[%clk
0:03:02.3]} 11... Nf8 {[%clk 0:02:20.7]} 12. O-O {[%clk 0:03:02.6]} 12... Bd6
{[%clk 0:02:16.7]} 13. Ne5 {[%clk 0:03:03.1]} 13... Qe7 {[%clk 0:02:07]} 14. Bh2
{[%clk 0:02:59.9]} 14... N6d7 {[%clk 0:01:53.3]} 15. f4 {[%clk 0:02:56.4]} 15...
f6 {[%clk 0:01:42.5]} 16. e4 {[%clk 0:02:44.1]} 16... fxe5 {[%clk 0:01:16.9]}
17. fxe5 {[%clk 0:02:45]} 17... Nxe5 {[%clk 0:01:17.1]} 18. dxe5 {[%clk
0:02:45.3]} 18... Bxe5 {[%clk 0:01:17.7]} 19. exd5 {[%clk 0:02:42.6]} 19... Qc5+
{[%clk 0:00:58.4]} 20. Kh1 {[%clk 0:02:40.1]} 20... Bxh2 {[%clk 0:00:58.6]} 21.
Kxh2 {[%clk 0:02:40.6]} 21... cxd5 {[%clk 0:00:59.2]} 22. Nxd5 {[%clk
0:02:40.4]} 22... Qxc2 {[%clk 0:00:51.2]} 23. Bxc2 {[%clk 0:02:41.3]} 23... Re2
{[%clk 0:00:51]} 24. Bb3 {[%clk 0:02:37.1]} 24... Be6 {[%clk 0:00:38.2]} 25. Nf4
{[%clk 0:02:35]} 25... Rxb2 {[%clk 0:00:11.7]} 26. Bxe6+ {[%clk 0:02:25.3]}
26... Nxe6 {[%clk 0:00:11.4]} 27. Nxe6 {[%clk 0:02:26.2]} 27... Re8 {[%clk
0:00:10.3]} 28. Nf4 {[%clk 0:02:24.9]} 28... g5 {[%clk 0:00:07.8]} 29. Nd3
{[%clk 0:02:23.5]} 29... Rd2 {[%clk 0:00:07.4]} 30. Rfd1 {[%clk 0:02:23]} 30...
Ree2 {[%clk 0:00:07.1]} 31. Rxd2 {[%clk 0:02:22.7]} 31... Rxd2 {[%clk 0:00:08]}
32. Nc5 {[%clk 0:02:23.6]} 32... b6 {[%clk 0:00:07.9]} 33. Ne4 {[%clk
0:02:23.9]} 33... Rb2 {[%clk 0:00:07.3]} 34. a4 {[%clk 0:02:21.5]} 34... Kf7
{[%clk 0:00:06.9]} 35. a5 {[%clk 0:02:22.1]} 35... b5 {[%clk 0:00:07.2]} 36. a6
{[%clk 0:02:21.6]} 36... b4 {[%clk 0:00:07.4]} 37. Nd6+ {[%clk 0:02:22.2]} 37...
Ke6 {[%clk 0:00:07.5]} 38. Nc8 {[%clk 0:02:23.1]} 38... b3 {[%clk 0:00:06.1]}
39. Nxa7 {[%clk 0:02:23.7]} 39... Ra2 {[%clk 0:00:05.9]} 40. Rb1 {[%clk
0:02:24.4]} 40... Rxa6 {[%clk 0:00:05]} 41. Nb5 {[%clk 0:02:25]} 41... Rb6
{[%clk 0:00:03.1]} 42. Rxb3 {[%clk 0:02:23.8]} 42... Ke5 {[%clk 0:00:02.6]} 43.
Nd4 {[%clk 0:02:23.2]} 43... Rxb3 {[%clk 0:00:02]} 44. Nxb3 {[%clk 0:02:24.1]}
44... Kf4 {[%clk 0:00:02.6]} 45. Nd4 {[%clk 0:02:21.5]} 45... h5 {[%clk
0:00:03.5]} 46. Ne6+ {[%clk 0:02:22.1]} 46... Kf5 {[%clk 0:00:03.8]} 47. Ng7+
{[%clk 0:02:12.6]} 47... Kg6 {[%clk 0:00:04.1]} 48. Ne8 {[%clk 0:02:13.3]} 48...
Kf5 {[%clk 0:00:04.6]} 49. Kg3 {[%clk 0:02:13]} 49... Ke4 {[%clk 0:00:03.9]} 50.
Nf6+ {[%clk 0:02:12.8]} 1-0